bitfinex/quotes_ETHUSD_20251118
["timestamp","ask_amount","ask_price","bid_price","bid_amount"]
[1763434983033,0.405504,2961.2,2958.4,0.4547]
[1763434983194,0.405504,2961.0,2958.4,0.4547]
[1763434983397,0.04221689,2960.9,2958.4,0.4547]
[1763434983902,0.04221831,2960.8,2958.4,0.4547]
[1763434984087,0.0041,2961.9,2958.5,0.405504]
[1763434984088,0.04221974,2960.7,2958.5,0.405504]
[1763434984305,0.04220406,2961.8,2958.5,0.02170116]
[1763434984500,0.04219124,2962.7,2958.7,0.405504]
[1763434984700,0.0041,2963.5,2958.7,0.405504]
[1763434984701,0.04219266,2962.6,2958.7,0.405504]
[1763434984905,0.04219266,2962.6,2958.9,0.405504]
[1763434985340,0.04219266,2962.6,2959.1,0.405504]
[1763434985842,0.0041,2963.5,2959.0,0.4763731]
[1763434985843,0.04218127,2963.4,2959.3,0.405504]
[1763434986017,1.73676171,2965.6,2960.2,0.405504]
[1763434986216,1.66270255,2965.7,2960.2,0.405504]
[1763434986217,0.23156823,2965.7,2960.4,0.405504]
[1763434986544,0.0041,2965.8,2960.3,4.503773]
[1763434986545,0.0205965,2965.5,2960.6,0.405504]
[1763434986700,0.0205965,2965.5,2960.5,0.405504]
[1763434986902,0.0205965,2965.5,2960.7,0.405504]
[1763434987100,0.0205965,2965.5,2960.9,0.405504]
[1763434987457,0.0205965,2965.5,2960.6,0.4583]
[1763434987458,0.0205965,2965.8,2961.1,0.405504]
[1763434987605,0.0205965,2965.7,2961.6,0.90699264]
[1763434987943,0.0205965,2966.5,2962.1,3.968504]
[1763434988250,0.0205965,2966.4,2962.3,0.405504]
[1763434988400,0.0205965,2967.2,2962.5,0.405504]
[1763434988604,1.67723559,2967.1,2962.5,0.405504]
[1763434988847,0.19500971,2967.0,2962.7,0.405504]
[1763434989053,0.405504,2966.9,2962.9,0.405504]
[1763434989346,0.0205965,2966.8,2963.1,0.405504]
[1763434989502,0.0205965,2966.8,2963.0,0.405504]
[1763434989700,0.0205965,2966.8,2963.1,0.03374843]
[1763434989903,0.0463,2966.7,2963.2,0.405504]
[1763434990139,0.17441321,2967.0,2963.2,0.405504]
[1763434990140,0.0205965,2966.6,2963.2,0.405504]
[1763434990360,0.0205965,2966.6,2963.4,0.405504]
[1763434990642,0.0463,2967.9,2963.6,0.405504]
[1763434990814,0.0205965,2967.8,2963.8,0.405504]
[1763434991014,0.0463,2968.6,2962.6,0.1956]
[1763434991015,0.0463,2968.6,2964.0,0.405504]
[1763434991343,0.0205965,2968.5,2964.2,0.405504]
[1763434991529,0.0205965,2968.5,2964.4,0.405504]
[1763434991734,0.0205965,2968.5,2964.6,0.405504]
[1763434991936,0.0205965,2968.5,2964.8,0.405504]
[1763434992255,0.0205965,2968.9,2965.0,0.405504]
[1763434992455,0.0205965,2969.1,2965.1,0.03372567]
[1763434992752,0.0463,2970.0,2965.1,0.03372567]
[1763434992753,0.0205965,2969.9,2965.2,0.405504]
[1763434992916,0.0205965,2969.8,2965.4,0.405504]
[1763434993116,0.0205965,2969.8,2965.6,0.405504]
[1763434993312,0.0205965,2969.8,2965.5,0.03372112]
[1763434993313,0.0205965,2970.4,2965.8,0.405504]
[1763434993613,0.0205965,2972.1,2966.2,0.405504]
[1763434993862,0.0205965,2972.1,2965.9,0.03371657]
[1763434993863,0.0205965,2972.1,2966.4,0.405504]
[1763434994019,1.65266112,2972.0,2966.6,0.405504]
[1763434994218,0.0205965,2971.9,2966.8,0.405504]
[1763434994458,0.0668965,2971.9,2967.0,0.405504]
[1763434994626,0.002,2968.5,2967.2,0.405504]
[1763434994818,0.002,2968.5,2967.4,0.405504]
[1763434995013,0.002,2968.5,2968.4,0.601104]
[1763434995367,0.002,2968.5,2968.4,1.059404]
[1763434995518,0.002,2969.1,2968.5,0.863804]
[1763434995710,0.0205965,2971.7,2968.5,0.863804]
[1763434995911,0.0205965,2971.7,2968.7,0.405504]
[1763434996353,0.0205965,2971.7,2968.9,0.405504]
[1763434996561,0.0483,2972.6,2969.1,0.405504]
[1763434996717,0.0205965,2972.5,2969.0,0.4583]
[1763434996915,0.0205965,2973.1,2969.2,0.405504]
[1763434997139,0.0205965,2973.1,2969.3,0.03367797]
[1763434997342,0.0205965,2973.1,2969.5,0.405504]
[1763434997524,0.0688965,2973.1,2969.5,0.405504]
[1763434997726,0.0688965,2973.1,2969.7,0.405504]
[1763434997915,0.0483,2973.0,2969.7,0.405504]
[1763434998110,0.4261005,2972.9,2969.9,0.405504]
[1763434998357,0.0205965,2972.9,2969.9,0.405504]
[1763434998514,0.0688965,2973.7,2970.1,0.405504]
[1763434998971,0.405504,2973.5,2970.2,0.6751]
[1763434999148,0.0205965,2973.4,2970.2,0.6751]
[1763434999333,1.87309635,2973.3,2969.5,0.4945]
[1763434999659,1.60101531,2973.1,2969.5,0.4945]
[1763434999825,0.38073378,2973.2,2969.5,0.4945]
[1763434999826,2.05958484,2973.2,2969.5,0.4945]
[1763435000027,0.0483,2973.1,2969.5,0.4945]
[1763435000228,0.0483,2973.1,2969.6,0.43917856]
[1763435000415,0.0483,2973.1,2969.8,0.405504]
[1763435000819,0.20790726,2973.3,2970.0,0.405504]
[1763435001019,0.20790726,2973.3,2969.9,0.52817116]
[1763435001020,0.0483,2973.8,2969.9,0.4945]
[1763435001323,0.0483,2973.2,2969.9,0.4945]
[1763435001538,2.08330647,2973.0,2969.9,0.4945]
[1763435001743,0.405504,2972.8,2969.9,0.4945]
[1763435001927,0.20833065,2972.9,2969.9,0.4945]
[1763435001928,0.0483,2972.7,2969.9,0.4945]
[1763435002550,0.405504,2972.6,2969.9,0.4945]
[1763435003054,0.405504,2972.8,2969.9,0.4945]
[1763435003257,0.405504,2972.4,2969.9,0.4945]
[1763435003461,0.0483,2972.3,2969.9,0.4945]
[1763435003831,0.405504,2972.2,2969.1,0.4945]
[1763435004039,0.0483,2972.3,2969.1,0.4945]
[1763435004040,1.63872544,2971.9,2969.1,0.4945]
[1763435004339,0.29512221,2971.8,2969.1,0.4945]
[1763435004551,0.405504,2971.7,2969.1,0.4945]
[1763435004716,0.453804,2971.7,2969.1,0.4945]
[1763435004920,0.0483,2971.6,2969.1,0.4945]
[1763435005146,0.405504,2971.5,2969.1,0.4945]
[1763435005343,1.31249664,2971.5,2968.5,0.4945]
[1763435005553,0.405504,2971.1,2968.5,0.4945]
[1763435005725,0.0483,2971.4,2968.5,0.4945]
[1763435005927,0.0483,2971.4,2968.6,0.405504]
[1763435006143,0.0483,2971.4,2968.8,0.405504]
[1763435006344,0.405504,2971.2,2968.7,0.4945]
[1763435006558,2.03926933,2971.2,2967.7,0.4945]
[1763435006733,2.03926933,2971.2,2964.8,0.03372908]
[1763435006734,2.1048892,2971.0,2967.3,0.4945]
[1763435007072,2.05472468,2970.8,2967.3,0.4945]
[1763435007223,0.38073378,2970.7,2967.3,0.4945]
[1763435007422,0.405504,2970.4,2967.3,0.4945]
[1763435007627,0.405504,2970.2,2967.3,0.4945]
[1763435007921,0.0483,2970.3,2967.3,0.4945]
[1763435008144,0.405504,2970.0,2967.3,0.4945]
[1763435008332,0.29690984,2969.9,2967.3,0.4945]
[1763435008534,0.0483,2970.2,2967.3,0.4945]
[1763435008733,0.0483,2970.9,2967.4,0.405504]
[1763435009063,0.0483,2973.8,2967.6,0.405504]
[1763435009064,1.72242799,2973.7,2967.6,0.405504]
[1763435009366,1.72242799,2973.7,2967.8,3.968504]
[1763435009367,1.53,2970.0,2967.8,3.968504]
[1763435009531,1.67412799,2973.7,2967.7,1.43518876]
[1763435009532,0.0483,2973.1,2970.0,0.405504]
[1763435009732,0.0483,2973.1,2970.1,0.4945]
[1763435009931,0.0483,2973.1,2970.2,0.405504]
[1763435010332,0.0483,2973.8,2970.4,0.405504]
[1763435010761,0.0483,2973.8,2970.6,0.405504]
[1763435010964,0.0483,2973.8,2970.8,0.405504]
[1763435011270,0.0483,2973.7,2970.7,0.4945]
[1763435012036,0.22083344,2973.7,2970.8,0.43916496]
[1763435012357,0.0483,2973.7,2970.8,0.405504]
[1763435012533,0.0483,2973.6,2970.8,0.4945]
[1763435012859,0.405504,2973.5,2970.8,0.4945]
[1763435013161,0.0483,2973.6,2970.8,0.4945]
[1763435013332,0.0503,2973.8,2970.9,0.405504]
[1763435013723,0.0503,2973.8,2971.1,0.405504]
[1763435014265,0.0503,2973.8,2971.2,0.4945]
[1763435014575,0.002,2973.8,2971.3,0.405504]
[1763435014782,0.002,2973.8,2971.5,0.405504]
[1763435015231,0.002,2973.8,2971.7,0.405504]
[1763435015431,0.002,2973.8,2971.9,0.405504]
[1763435015666,0.002,2973.8,2971.8,0.52814963]
[1763435015667,0.002,2973.8,2971.8,0.4945]
[1763435015840,0.002,2973.8,2971.9,0.405504]
[1763435016354,0.002,2973.8,2970.0,0.03367003]
[1763435016355,0.002,2973.8,2972.1,0.405504]
[1763435016668,0.002,2973.8,2972.3,0.405504]
[1763435016975,0.002,2974.1,2972.5,0.405504]
[1763435017180,0.002,2974.4,2972.7,0.405504]
[1763435017467,0.002,2974.4,2972.6,0.03364058]
[1763435017468,0.002,2974.4,2972.6,0.662]
[1763435017676,0.002,2974.4,2972.7,0.879004]
[1763435018044,0.002,2974.4,2972.9,0.405504]
[1763435018369,0.002,2974.4,2973.1,0.405504]
[1763435018877,0.002,2974.4,2973.3,0.405504]
[1763435019375,0.002,2974.4,2972.6,0.1885]
[1763435019376,0.002,2974.8,2974.4,0.405504]
[1763435019575,0.0563,2977.0,2974.4,0.405504]
[1763435019778,0.0563,2977.0,2974.6,0.405504]
[1763435020139,0.0603,2976.9,2974.7,0.4735]
[1763435020871,0.17206503,2976.8,2974.7,0.4735]
[1763435021035,0.0603,2976.9,2974.7,0.4735]
[1763435021235,1.73676171,2978.1,2974.8,0.405504]
[1763435021236,0.0603,2977.5,2974.8,0.405504]
[1763435021652,0.0603,2977.5,2975.0,0.405504]
[1763435022066,0.0603,2977.5,2975.2,0.405504]
[1763435022454,0.0603,2977.5,2975.3,0.4735]
[1763435022661,0.1206,2977.5,2975.3,0.4735]
[1763435023285,0.1206,2977.5,2974.3,0.1885]
[1763435023286,0.0603,2977.4,2974.6,0.4735]
[1763435023487,0.405504,2977.3,2974.6,0.4735]
[1763435023850,0.405504,2977.1,2974.6,0.4735]
[1763435024171,0.2083205,2977.0,2974.6,0.4735]
[1763435024373,0.0603,2977.2,2974.6,0.4735]
[1763435024681,0.405504,2977.0,2974.6,0.4735]
[1763435025050,0.0603,2976.9,2974.6,0.4735]
[1763435025579,0.0603,2977.5,2974.7,0.405504]
[1763435025580,0.82575131,2977.5,2974.7,0.405504]
[1763435025788,0.1206,2977.5,2974.8,0.0336157]
[1763435025948,0.1206,2977.5,2974.6,0.4735]
[1763435025949,0.0603,2977.5,2974.7,0.405504]
[1763435026149,0.0603,2978.0,2975.0,0.405504]
[1763435026561,0.0603,2977.9,2975.2,0.405504]
[1763435026773,0.0603,2977.9,2975.3,0.4735]
[1763435026974,0.0603,2977.9,2975.4,0.405504]
[1763435027373,0.0603,2978.5,2975.6,0.405504]
[1763435027549,0.1206,2978.5,2975.6,0.405504]
[1763435027748,0.0603,2978.4,2975.7,0.4735]
[1763435027957,0.0603,2978.4,2975.8,0.405504]
[1763435028195,0.0603,2978.4,2976.0,0.405504]
[1763435028494,0.0603,2978.4,2975.9,0.4735]
[1763435028495,0.0603,2978.5,2976.2,0.405504]
[1763435028794,0.0603,2979.0,2976.4,0.405504]
[1763435029299,0.0603,2979.0,2976.6,0.405504]
[1763435029606,0.0603,2979.0,2976.5,0.5070965]
[1763435029607,0.0603,2980.1,2976.8,0.405504]
[1763435029805,0.0603,2980.1,2976.5,0.4735]
[1763435029806,0.0603,2980.1,2976.6,0.405504]
[1763435030104,0.0603,2980.1,2976.8,0.405504]
[1763435030470,0.1206,2980.1,2977.0,0.405504]
[1763435030873,0.1206,2980.1,2976.6,0.4735]
[1763435030874,2.07634843,2979.9,2976.6,0.4735]
[1763435031073,2.07634843,2979.9,2975.5,0.1885]
[1763435031074,2.00810052,2979.7,2975.5,0.1885]
[1763435031273,2.00810052,2979.7,2976.0,0.4735]
[1763435031474,0.405504,2979.5,2976.0,0.4735]
[1763435031673,0.405504,2979.3,2976.0,0.4735]
[1763435031902,0.405504,2979.1,2976.0,0.4735]
[1763435032101,0.405504,2978.9,2975.5,0.1885]
[1763435032303,0.90699264,2978.7,2974.8,0.4735]
[1763435032487,1.6771481,2977.9,2974.8,0.4735]
[1763435032688,2.09323244,2978.5,2974.8,0.4735]
[1763435032889,1.31249664,2978.3,2974.8,0.4735]
[1763435033180,0.405504,2977.5,2974.8,0.4735]
[1763435033373,0.405504,2977.5,2972.9,0.001]
[1763435033374,0.405504,2977.5,2974.0,0.4735]
[1763435033578,0.405504,2977.3,2974.0,0.4735]
[1763435033908,0.0603,2977.4,2974.0,0.4735]
[1763435034112,0.0603,2977.3,2974.0,0.4735]
[1763435034610,0.405504,2977.0,2974.0,0.4735]
[1763435034774,0.405504,2976.8,2974.0,0.4735]
[1763435034975,0.405504,2976.8,2973.7,0.1885]
[1763435035311,0.405504,2976.6,2973.4,0.4735]
[1763435035508,0.405504,2976.4,2972.9,0.001]
[1763435035685,1.64398213,2975.9,2972.9,0.001]
[1763435035886,0.61045261,2975.8,2972.9,0.4745]
[1763435036073,0.20494861,2975.8,2972.9,0.4745]
[1763435036273,1.69473277,2976.3,2972.9,0.4745]
[1763435036274,0.0603,2976.3,2973.0,0.03363605]
[1763435036501,0.0603,2976.3,2973.1,0.405504]
[1763435036705,0.0603,2976.3,2973.1,0.91263892]
[1763435036909,0.0603,2977.1,2973.2,0.405504]
[1763435037114,0.0603,2977.1,2973.3,0.03363266]
[1763435037423,0.52851312,2977.6,2973.3,0.03363266]
[1763435037610,0.52851312,2977.6,2973.6,4.87549664]
[1763435037934,0.002,2979.0,2973.6,4.87549664]
[1763435037935,0.0623,2979.0,2973.8,0.405504]
[1763435038098,0.0623,2979.0,2973.7,1.16500359]
[1763435038299,0.52824,2978.4,2974.0,0.405504]
[1763435038509,0.52824,2978.4,2974.2,0.405504]
[1763435038832,0.52824,2978.4,2973.7,0.1885]
[1763435038833,0.405504,2978.2,2974.3,0.4735]
[1763435038984,1.72332261,2978.1,2974.3,0.4735]
[1763435039186,0.405504,2977.9,2974.3,0.4735]
[1763435039389,1.11381476,2977.9,2974.4,0.03362022]
[1763435039628,0.0603,2977.8,2974.4,0.03362022]
[1763435039838,0.0603,2977.8,2974.6,0.405504]
[1763435040124,0.0603,2977.8,2974.8,0.405504]
[1763435040333,0.0603,2977.8,2974.7,0.405504]
[1763435040539,0.0603,2977.8,2974.8,0.4735]
[1763435040702,0.27747785,2977.8,2974.9,0.03361457]
[1763435040907,0.27747785,2977.8,2974.4,0.4735]
[1763435040908,0.0603,2977.7,2974.4,0.4735]
[1763435041216,0.0603,2977.7,2974.5,0.03361909]
[1763435041217,1.73443405,2977.7,2974.5,0.03361909]
[1763435041400,0.0603,2977.7,2974.7,0.405504]
[1763435041739,0.20025242,2977.6,2974.8,0.4735]
[1763435041893,0.405504,2978.0,2974.9,0.405504]
[1763435042095,0.405504,2977.4,2974.8,0.4735]
[1763435042308,0.0603,2977.5,2974.8,0.4735]
[1763435042894,0.0603,2977.5,2974.9,0.03361457]
[1763435043090,0.52843709,2978.1,2975.0,0.03361344]
[1763435043303,0.52843709,2978.1,2975.1,0.405504]
[1763435043507,0.52843709,2978.1,2975.3,0.405504]
[1763435043719,0.002,2979.0,2978.0,0.1885]
[1763435044620,0.002,2979.0,2977.4,0.662]
[1763435045145,0.0623,2979.0,2976.7,0.4735]
[1763435046118,0.0623,2979.0,2976.8,0.405504]
[1763435046119,0.002,2979.0,2976.8,0.405504]
[1763435046539,0.002,2979.0,2977.0,0.405504]
[1763435047050,0.52804131,2978.6,2977.1,0.4955]
[1763435047251,0.52804131,2978.6,2977.2,0.405504]
[1763435047438,0.52804131,2978.6,2977.1,0.4955]
[1763435047638,0.52804131,2978.6,2977.2,0.4390926]
[1763435047818,0.52804131,2978.6,2977.2,0.405504]
[1763435048018,0.52804131,2978.6,2977.4,0.405504]
[1763435048460,0.52804131,2978.6,2977.6,0.405504]
[1763435048816,0.52804131,2978.6,2977.7,0.4955]
[1763435049031,0.52804131,2978.6,2976.7,0.4955]
[1763435049932,0.52804131,2978.6,2976.1,0.1885]
[1763435049933,0.0603,2978.5,2976.1,0.1885]
[1763435050250,0.0603,2978.5,2973.4,7.66567163]
[1763435050251,0.405504,2978.4,2977.4,0.001]
[1763435050761,0.0603,2978.3,2977.4,0.001]
[1763435051553,0.52804131,2978.6,2977.4,0.001]
[1763435052188,0.0603,2978.5,2977.4,0.001]
[1763435052489,0.405504,2978.4,2977.4,0.001]
[1763435052661,0.52804131,2978.6,2977.4,0.001]
[1763435053044,0.0603,2978.5,2977.4,0.001]
[1763435053489,0.405504,2978.4,2976.8,0.001]
[1763435053688,0.405504,2977.6,2973.8,1.60332049]
[1763435053852,0.405504,2977.6,2973.2,4.16261681]
[1763435053853,0.8632638,2977.5,2974.0,1.61293045]
[1763435054048,0.8632638,2977.5,2974.2,1.64963319]
[1763435054275,0.4908,2977.4,2974.0,1.61293045]
[1763435054460,0.4908,2977.4,2973.9,0.17918205]
[1763435054461,0.4908,2977.4,2974.2,1.64963319]
[1763435054672,0.4908,2977.4,2974.4,1.63786178]
[1763435054862,0.4908,2977.4,2975.4,1.64451956]
[1763435055484,0.4908,2977.3,2974.2,1.64963319]
[1763435055700,0.4908,2977.3,2974.3,1.69682746]
[1763435055849,0.4908,2977.3,2974.4,1.63786178]
[1763435056178,0.4908,2977.3,2974.4,2.13336178]
[1763435056373,0.4908,2977.3,2974.6,1.65355273]
[1763435056582,0.405504,2977.2,2974.6,1.65355273]
[1763435056951,0.4908,2977.1,2974.7,1.66482455]
[1763435057152,0.4908,2977.1,2974.8,1.6673774]
[1763435057395,0.5285214,2976.6,2974.9,1.68994089]
[1763435057603,0.1645,2977.5,2975.5,1.64087759]
[1763435057900,0.4908,2977.0,2975.2,1.61865369]
[1763435059486,0.4728,2977.3,2975.4,1.64451956]
[1763435059907,0.4728,2977.3,2975.2,1.61865369]
[1763435060124,0.52846762,2976.9,2974.4,1.63786178]
[1763435060297,0.52846762,2976.9,2974.6,1.65355273]
[1763435060494,0.4728,2976.8,2974.8,1.6673774]
[1763435061730,0.405504,2976.7,2974.5,1.63471092]
[1763435062032,0.3893,2974.9,2972.9,0.4985]
[1763435062238,1.99067743,2976.6,2973.0,0.03363605]
[1763435062378,1.6291421,2976.4,2972.9,0.4985]
[1763435062716,1.6268489,2976.2,2972.9,0.4985]
[1763435062920,0.30657625,2976.1,2972.9,0.4985]
[1763435063124,1.9369897,2976.1,2972.9,0.001]
[1763435063331,0.30654084,2976.0,2972.9,0.4985]
[1763435063489,1.6268489,2976.2,2973.0,0.21711451]
[1763435063689,0.30654084,2976.1,2973.0,0.21711451]
[1763435063886,1.69473277,2976.3,2973.0,0.4975]
[1763435064091,1.63044886,2976.1,2973.0,2.10216736]
[1763435064291,0.405504,2975.5,2972.9,0.001]
[1763435064595,0.405504,2975.8,2973.0,0.4975]
[1763435065021,1.63789979,2977.1,2973.1,0.03363492]
[1763435065221,0.30570971,2976.8,2973.2,0.03363379]
[1763435065440,1.63789979,2977.1,2973.3,0.903004]
[1763435065727,1.67974819,2977.4,2973.3,0.903004]
[1763435066029,2.18423362,2976.9,2973.6,0.405504]
[1763435066218,0.52846762,2976.9,2973.7,2.14486385]
[1763435066530,0.71185672,2976.8,2973.7,2.14486385]
[1763435066694,0.71185672,2976.8,2973.0,0.405504]
[1763435066695,0.405504,2976.6,2973.3,1.60951358]
[1763435066893,0.405504,2976.6,2973.0,0.405504]
[1763435066894,0.20892943,2976.5,2973.9,1.60779858]
[1763435067098,0.405504,2976.4,2973.5,1.62645]
[1763435067331,0.405504,2976.4,2973.5,2.12395]
[1763435067547,0.52846762,2976.9,2974.0,2.09429614]
[1763435067833,0.52846762,2976.9,2974.2,0.405504]
[1763435068040,0.52846762,2976.9,2974.4,0.405504]
[1763435068253,0.52846762,2976.9,2974.3,0.86864881]
[1763435068397,0.52846762,2976.9,2974.3,0.4975]
[1763435068737,1.31249664,2976.8,2974.3,0.4975]
[1763435068906,0.405504,2976.8,2974.3,0.4975]
[1763435069235,0.52846762,2976.9,2974.3,0.4975]
[1763435069438,0.52846762,2976.9,2974.4,0.405504]
[1763435069742,0.52846762,2976.9,2974.6,0.405504]
[1763435069898,0.52846762,2976.9,2974.6,2.8044955]
[1763435070099,0.002,2977.0,2974.7,0.84749955]
[1763435070299,0.002,2977.0,2974.8,0.4975]
[1763435070532,0.52854791,2976.4,2974.8,0.4975]
[1763435070756,0.002,2977.0,2974.8,0.4975]
[1763435071061,0.002,2977.0,2974.0,2.18629214]
[1763435071267,0.002,2977.0,2974.1,0.21872921]
[1763435071447,0.405504,2976.9,2974.1,0.71622921]
[1763435071648,0.002,2977.0,2974.1,0.71622921]
[1763435071885,0.002,2977.0,2974.2,0.4975]
[1763435072571,0.002,2977.0,2974.3,0.405504]
[1763435072858,0.002,2977.0,2974.4,0.82769955]
[1763435073277,0.002,2977.0,2974.5,0.4975]
[1763435073479,2.01155427,2977.0,2974.2,1.64717144]
[1763435073639,0.52865704,2976.4,2974.2,2.14467144]
[1763435073971,0.52865704,2976.4,2974.4,1.60607634]
[1763435074124,0.52865704,2976.4,2974.6,0.405504]
[1763435074467,0.52865704,2976.4,2975.1,2.3989915]
[1763435074768,0.52865704,2976.4,2974.7,0.4975]
[1763435075072,0.405504,2976.9,2974.1,0.4975]
[1763435075221,2.01155427,2977.0,2974.1,0.4975]
[1763435075422,0.5285,2974.3,2974.1,0.4975]
[1763435075828,0.405504,2976.6,2974.1,0.4975]
[1763435076142,0.405504,2976.6,2973.9,0.001]
[1763435076143,0.405504,2976.7,2973.9,0.001]
[1763435076453,0.405504,2976.6,2974.0,0.4738]
[1763435076766,0.002,2977.0,2974.2,2.3989915]
[1763435077068,0.002,2977.0,2974.5,2.3989915]
[1763435077236,0.002,2977.0,2974.6,2.8044955]
[1763435077436,0.002,2977.0,2975.1,2.3989915]
[1763435077749,0.002,2977.0,2975.4,2.3989915]
[1763435077929,0.002,2977.0,2975.2,0.4738]
[1763435077930,0.002,2977.0,2975.2,2.8727915]
[1763435078261,0.52854055,2976.7,2974.1,2.3989915]
[1763435078460,0.405504,2976.1,2973.9,0.001]
[1763435078653,0.34783332,2976.0,2973.9,0.001]
[1763435078826,0.405504,2976.1,2974.0,1.68879214]
[1763435079229,0.405504,2976.2,2974.0,1.68879214]
[1763435079530,0.21002368,2976.1,2974.0,1.68879214]
[1763435080067,0.21002368,2976.1,2973.9,0.001]
[1763435080362,0.75333732,2976.0,2973.3,0.001]
[1763435080726,0.405504,2976.0,2973.3,0.001]
[1763435081338,0.52883268,2975.5,2973.6,0.4748]
[1763435082196,0.52883268,2975.5,2973.3,2.3999915]
[1763435082197,0.405504,2975.4,2973.3,0.001]
[1763435082395,1.6826252,2974.3,2971.0,4.16261681]
[1763435082608,0.55664624,2974.2,2971.5,1.69528721]
[1763435082761,0.405504,2974.1,2971.5,1.69528721]
[1763435083504,0.405504,2973.7,2970.8,2.991031]
[1763435083661,2.56036821,2973.6,2970.7,0.4738]
[1763435083863,2.96546876,2973.5,2970.8,1.65234149]
[1763435084104,2.05847612,2973.5,2971.0,1.62360416]
[1763435084455,2.40630944,2973.5,2970.9,0.4738]
[1763435084661,0.75333732,2973.5,2970.9,0.4738]
[1763435084875,0.405504,2973.5,2971.0,1.64912114]
[1763435085091,0.405504,2973.3,2971.0,1.64912114]
[1763435085294,0.52910339,2973.8,2971.1,0.4738]
[1763435085504,0.52910339,2973.8,2971.2,1.64610278]
[1763435085726,0.52910339,2973.8,2971.4,1.618974]
[1763435085999,0.52910339,2973.8,2971.3,0.4738]
[1763435086000,2.05847612,2973.5,2969.7,1.32076458]
[1763435086171,1.6355931,2972.3,2968.9,0.4738]
[1763435086371,2.08811936,2971.8,2968.9,0.4738]
[1763435086761,0.405504,2971.6,2968.9,0.4738]
[1763435086962,0.405504,2971.4,2967.1,0.03370294]
[1763435087197,0.37899999,2971.3,2968.3,0.4738]
[1763435087371,0.405504,2971.2,2968.3,0.4738]
[1763435087577,0.405504,2971.0,2968.3,0.4738]
[1763435087799,0.405504,2970.7,2967.0,0.19]
[1763435088102,1.64589479,2970.0,2967.6,0.4738]
[1763435088285,0.37899999,2970.6,2967.6,0.4738]
[1763435088286,0.20513988,2969.9,2967.6,0.4738]
[1763435088463,0.405504,2970.0,2967.6,0.4738]
[1763435088793,2.06210571,2970.1,2967.6,0.4738]
[1763435088959,0.405504,2970.1,2967.6,0.4738]
[1763435089159,1.63376533,2971.2,2967.6,0.4738]
[1763435089621,0.37899999,2971.3,2967.6,0.4738]
[1763435089821,0.37899999,2971.1,2967.6,0.4738]
[1763435090028,1.60636112,2972.0,2967.7,0.405504]
[1763435090203,0.37899999,2971.8,2967.9,0.405504]
[1763435090398,1.68261536,2971.8,2967.9,0.405504]
[1763435090600,0.5775361,2971.9,2968.1,0.405504]
[1763435090908,0.19853611,2971.9,2968.3,0.405504]
[1763435091111,0.37899999,2972.3,2968.5,0.405504]
[1763435091309,1.15102285,2974.2,2968.7,0.405504]
[1763435091310,1.67412799,2973.7,2968.7,0.405504]
[1763435091525,1.65297212,2973.5,2968.7,0.405504]
[1763435091709,1.65297212,2973.5,2968.9,0.405504]
[1763435091710,2.03197211,2973.5,2968.9,0.405504]
[1763435091913,1.66518909,2973.3,2968.9,0.405504]
[1763435092120,1.66518909,2973.3,2969.0,0.4738]
[1763435092121,1.83496997,2973.2,2969.0,0.4738]
[1763435092317,2.21396996,2973.2,2969.0,0.4738]
[1763435092640,1.60101531,2973.1,2969.1,0.405504]
[1763435093135,0.20441891,2973.2,2969.3,0.405504]
[1763435093296,1.60101531,2973.1,2969.3,0.405504]
[1763435093490,1.60101531,2973.1,2968.4,0.03368818]
[1763435093491,0.18054342,2973.0,2969.4,0.4738]
[1763435093709,1.63409957,2972.9,2969.4,0.4738]
[1763435093911,1.67321701,2972.6,2969.4,0.4738]
[1763435094227,0.405504,2972.4,2969.4,0.4738]
[1763435094835,0.18054342,2973.0,2969.6,0.405504]
[1763435095129,1.66073632,2975.6,2969.8,0.405504]
[1763435095425,1.69939669,2975.4,2970.0,0.405504]
[1763435095633,1.60075672,2975.2,2970.0,0.405504]
[1763435095931,1.66819676,2975.0,2970.2,0.405504]
[1763435096131,1.67349726,2974.8,2970.2,0.405504]
[1763435096335,2.15803659,2973.9,2970.3,0.4738]
[1763435096495,2.96381012,2973.8,2970.3,0.4738]
[1763435096695,1.31249664,2973.8,2970.3,0.4738]
[1763435096913,0.405504,2973.6,2970.3,0.4738]
[1763435097119,2.07963199,2973.7,2970.3,0.4738]
[1763435097322,0.405504,2973.4,2970.3,0.4738]
[1763435097634,0.405504,2973.5,2970.3,0.4738]
[1763435098002,2.05847612,2973.5,2970.3,0.4738]
[1763435098214,0.405504,2973.5,2970.3,0.4738]
[1763435098404,0.405504,2973.1,2970.3,0.4738]
[1763435099016,0.405504,2972.9,2970.3,0.4738]
[1763435100310,1.65131348,2973.8,2970.3,0.4738]
[1763435100624,0.405504,2973.3,2970.3,0.4738]
[1763435100942,2.00874849,2972.5,2970.3,0.4738]
[1763435101151,0.4170137,2973.2,2970.3,0.4738]
[1763435101152,0.405504,2972.3,2970.3,0.4738]
[1763435101358,0.4793022,2973.9,2970.4,0.03366549]
[1763435101509,0.4793022,2973.9,2970.5,0.4738]
[1763435102221,0.4793022,2973.9,2970.6,0.405504]
[1763435102419,0.4793022,2973.9,2970.7,0.03366209]
[1763435102619,0.4793022,2973.9,2970.1,0.19]
[1763435102620,0.4793022,2973.9,2970.8,0.879304]
[1763435102850,0.4793022,2973.9,2973.8,0.19]
[1763435103008,0.4793022,2973.9,2973.4,0.19]
[1763435103216,1.63789979,2977.1,2973.4,0.19]
[1763435103438,1.64112292,2976.8,2973.5,0.4738]
[1763435103646,0.002,2977.0,2973.5,0.4738]
[1763435103811,0.52879728,2975.7,2973.5,0.4738]
[1763435104208,0.002,2977.0,2973.5,0.4738]
[1763435104209,0.37899999,2976.8,2973.5,0.4738]
[1763435104410,0.002,2977.0,2973.5,0.4738]
[1763435104411,0.4190137,2976.4,2973.5,0.4738]